bitfinex/quotes_ETHUSD_20240924
["timestamp","ask_amount","ask_price","bid_price","bid_amount"]
[1727190803949,3.95199165,2619.4,2619.1,3.81803]
[1727190805412,3.95199165,2619.4,2619.1,3.81802]
[1727190805626,3.19594593,2619.4,2619.1,3.81806]
[1727190806258,3.19594593,2619.4,2618.6,3.0]
[1727190806477,3.19594593,2619.4,2619.0,3.8181]
[1727190807027,3.19594593,2619.4,2618.9,3.81832]
[1727190807235,3.19594593,2619.2,2618.9,3.81832]
[1727190807585,3.19594593,2619.2,2618.8,3.81851]
[1727190807745,0.7693,2619.1,2618.8,3.81851]
[1727190808075,0.7693,2619.1,2618.9,3.81831]
[1727190808578,8.43555378,2619.5,2618.7,3.0]
[1727190808579,3.96524593,2619.4,2618.7,3.0]
[1727190808879,3.96524593,2619.4,2619.1,3.81805]
[1727190809250,4.8235379,2619.4,2619.1,3.81805]
[1727190809466,3.96524593,2619.4,2618.9,3.81825]
[1727190810163,3.96524593,2619.4,2619.0,3.81824]
[1727190810363,3.19594593,2619.2,2618.8,3.81845]
[1727190810566,3.19594593,2619.2,2618.9,3.81839]
[1727190811082,3.19594593,2619.2,2618.9,3.81832]
[1727190811374,3.19594593,2619.2,2618.9,3.8183]
[1727190811874,3.19594593,2619.2,2619.0,3.81825]
[1727190812939,3.19594593,2619.2,2619.1,3.8181]
[1727190813140,3.19594593,2619.2,2619.0,3.81825]
[1727190813539,3.19594593,2619.2,2619.0,7.63641]
[1727190813777,3.19594593,2619.2,2619.0,3.81816]
[1727190814294,3.19594593,2619.5,2619.2,3.81788]
[1727190814575,3.97649652,2619.5,2619.2,3.81788]
[1727190814874,3.97649652,2619.5,2619.0,4.58035]
[1727190815077,3.97649652,2619.5,2619.1,3.81809]
[1727190816184,3.19594593,2619.3,2619.1,3.81809]
[1727190816336,3.19594593,2619.3,2619.0,3.81823]
[1727190816541,3.19594593,2619.3,2619.0,7.63638]
[1727190816899,3.19594593,2619.3,2619.1,3.81808]
[1727190817272,3.19594593,2619.3,2619.2,3.81795]
[1727190818557,3.19594593,2619.5,2619.2,3.81795]
[1727190818673,7.80547593,2619.7,2619.2,3.81788]
[1727190818874,7.80547593,2619.7,2618.8,0.7622]
[1727190818875,3.19594593,2619.5,2619.1,3.81809]
[1727190819714,3.19594593,2619.5,2619.2,3.81794]
[1727190820017,3.19594593,2619.5,2619.1,3.8181]
[1727190820309,0.39764935,2619.4,2619.1,3.8181]
[1727190820481,3.19594593,2619.3,2618.9,3.8183]
[1727190820695,3.19594593,2619.1,2618.8,0.7622]
[1727190820884,3.19594593,2618.9,2618.7,7.63726]
[1727190821123,0.09546127,2619.0,2618.7,7.63726]
[1727190821289,3.98824593,2619.1,2618.7,7.63722]
[1727190821472,0.78063159,2619.0,2618.7,3.8186]
[1727190821914,3.98824593,2619.1,2618.7,3.8186]
[1727190822413,3.19594593,2618.9,2618.7,6.81864]
[1727190822786,3.19594593,2618.9,2618.6,6.81875]
[1727190824906,3.19594593,2618.7,2618.3,3.81918]
[1727190825102,0.7923,2618.6,2618.3,3.81918]
[1727190825516,3.19594593,2618.5,2618.2,0.0381198]
[1727190826049,7.83321593,2618.3,2618.2,0.0381198]
[1727190826716,4.01394593,2618.3,2618.2,0.0381198]
[1727190827312,3.81884,2618.6,2618.2,0.0381198]
[1727190827313,0.818,2618.5,2618.2,3.8575298]
[1727190827503,1.281671,2618.5,2618.2,0.0381198]
[1727190827918,3.19594593,2618.4,2618.2,0.0381198]
[1727190828132,0.818,2618.5,2618.3,3.81915]
[1727190828338,1.13759459,2618.8,2618.4,3.81912]
[1727190828534,1.22460946,2618.7,2618.4,3.81912]
[1727190828731,1.22460946,2618.7,2618.2,0.0381198]
[1727190828959,5.04342946,2618.7,2618.2,3.8574498]
[1727190829326,5.04342946,2618.7,2618.2,0.0381198]
[1727190829327,7.83321593,2618.3,2618.2,0.0381198]
[1727190829524,7.92871785,2618.3,2618.2,0.0381198]
[1727190829730,7.83321593,2618.3,2618.2,0.0381198]
[1727190830046,8.72901013,2618.3,2618.2,0.0381198]
[1727190830334,8.63349971,2618.3,2618.2,0.0381198]
[1727190830646,10.54881325,2618.3,2618.2,0.0381198]
[1727190830858,15.1264754,2618.3,2617.4,0.0381198]
[1727190831029,7.83437593,2617.5,2617.4,0.0381198]
[1727190831225,4.01394593,2617.5,2617.4,0.0381198]
[1727190831726,0.818,2617.5,2617.4,0.0381198]
[1727190831923,3.19594593,2617.7,2617.4,0.0381198]
[1727190831924,7.01620593,2617.7,2617.4,0.0381198]
[1727190832275,0.31959459,2617.6,2617.4,0.0381198]
[1727190832827,3.19594593,2617.5,2617.4,0.0381198]
[1727190833861,7.83437593,2617.5,2617.4,0.0381198]
[1727190834062,4.01394593,2617.5,2617.4,0.0381198]
[1727190834430,0.818,2617.5,2617.4,0.0381198]
[1727190835340,0.31959459,2617.6,2617.4,0.0381198]
[1727190835524,0.818,2617.7,2617.4,0.0381198]
[1727190835847,0.818,2617.7,2617.4,3.8585898]
[1727190836440,0.818,2617.7,2617.4,7.6790598]
[1727190836661,0.818,2618.0,2617.6,3.82018]
[1727190836962,0.818,2618.0,2617.5,3.82033]
[1727190837178,3.19594593,2617.7,2617.4,0.0381198]
[1727190837329,0.09551863,2617.6,2617.4,0.0381198]
[1727190838370,7.01614593,2617.7,2617.4,0.0381198]
[1727190838553,0.818,2617.6,2617.4,0.0381198]
[1727190838759,1.21939459,2617.9,2617.5,3.82036]
[1727190838957,0.818,2617.9,2617.5,3.82036]
[1727190839274,8.108,2618.2,2617.8,3.82]
[1727190839429,8.108,2618.2,2617.7,3.82014]
[1727190839430,0.818,2618.2,2617.7,3.82014]
[1727190839630,4.01394593,2618.2,2617.7,3.82014]
[1727190839876,4.01394593,2618.2,2617.5,4.57295]
[1727190839877,3.19594593,2618.0,2617.5,3.82035]
[1727190840036,7.01568593,2618.0,2617.4,0.0381198]
[1727190840231,3.19594593,2617.8,2617.4,0.0381198]
[1727190840457,0.91351834,2617.7,2617.4,0.0381198]
[1727190840658,0.09551834,2617.6,2617.4,0.0381198]
[1727190840866,0.818,2617.7,2617.4,0.0381198]
[1727190841168,7.29,2618.4,2617.4,0.0381198]
[1727190841169,0.7946,2618.0,2617.4,0.0381198]
[1727190841382,3.19594593,2618.2,2617.7,3.82005]
[1727190841677,1.36077072,2618.2,2617.9,3.81978]
[1727190841828,0.7946,2618.3,2618.0,3.81964]
[1727190842029,0.7946,2618.3,2617.5,0.7635]
[1727190842030,0.7946,2618.3,2618.1,7.63894]
[1727190842266,0.7946,2618.3,2618.1,3.81946]
[1727190842468,0.7946,2618.6,2618.0,0.7635]
[1727190842764,0.7946,2618.6,2618.2,3.8193]
[1727190843067,0.7946,2618.6,2618.4,3.81905]
[1727190843649,3.19594593,2618.6,2618.2,3.81928]
[1727190844174,3.81868,2618.7,2618.2,3.81928]
[1727190844344,3.19594593,2618.6,2618.0,4.58311]
[1727190844553,7.79571852,2618.6,2618.1,3.81955]
[1727190844976,7.79569852,2618.6,2618.1,3.81955]
[1727190845656,7.79569852,2618.6,2618.0,4.58311]
[1727190845866,3.81899,2618.5,2618.0,3.81961]
[1727190846046,3.81899,2618.5,2618.0,3.81969]
[1727190846047,0.77958585,2618.4,2618.0,3.81969]
[1727190846389,0.7946,2618.3,2618.0,3.81969]
[1727190846679,0.7946,2618.3,2617.8,4.58339]
[1727190846680,0.7946,2618.3,2617.9,3.81984]
[1727190846985,3.29144093,2618.2,2617.6,3.82019]
[1727190847146,3.29144093,2618.2,2617.9,3.81984]
[1727190847147,0.53933259,2618.2,2617.9,3.81984]
[1727190847551,0.7946,2618.3,2617.9,3.81977]
[1727190847970,0.7946,2618.3,2617.5,4.58387]
[1727190847971,0.77958585,2618.4,2618.1,3.81952]
[1727190848561,0.77958585,2618.4,2618.1,3.81949]
[1727190848761,4.61344,2618.6,2618.1,3.81949]
[1727190849246,4.61344,2618.6,2617.9,3.81975]
[1727190849247,3.91447023,2618.5,2617.9,3.81975]
[1727190849452,7.01515593,2618.4,2617.9,3.81975]
[1727190850993,11.62829593,2618.6,2618.1,3.81955]
[1727190851294,3.81929,2618.3,2617.9,3.81975]
[1727190851457,0.09549673,2618.2,2617.7,3.82001]
[1727190851657,0.7946,2618.1,2617.7,3.82001]
[1727190851858,3.19594593,2617.9,2617.4,6.8586498]
[1727190852097,3.19594593,2617.9,2617.4,3.8586898]
[1727190852098,0.0955112,2617.8,2617.4,3.8586898]
[1727190852261,7.01587593,2617.9,2617.4,3.8586898]
[1727190852461,0.70158759,2617.8,2617.5,3.82035]
[1727190852769,4.61427,2618.1,2617.6,3.82021]
[1727190852970,7.81021593,2618.1,2617.6,3.82021]
[1727190853172,3.91529837,2618.0,2617.4,7.6790998]
[1727190853502,3.19594593,2617.9,2617.4,0.0381198]
[1727190853705,0.7946,2617.8,2617.4,0.0381198]
[1727190853861,3.19594593,2617.7,2617.4,0.0381198]
[1727190854363,3.91582215,2617.6,2617.4,0.0381198]
[1727190854563,7.01637593,2617.5,2617.4,0.0381198]
[1727190854805,8.99017201,2617.5,2617.4,0.0381198]
[1727190855010,8.89464352,2617.5,2617.4,0.0381198]
[1727190855161,9.44464352,2617.5,2617.4,0.0381198]
[1727190856504,12.44464352,2617.5,2617.4,0.0381198]
[1727190856859,13.64082575,2617.5,2617.4,0.0381198]
[1727190859008,13.64082575,2617.5,2617.0,0.46]
[1727190859009,5.16562,2617.1,2617.0,0.46]
[1727190859171,9.15837537,2617.1,2617.0,0.46]
[1727190859499,8.36156593,2617.1,2617.0,0.46]
[1727190859664,9.15837537,2617.1,2617.0,0.46]
[1727190860087,8.36156593,2617.1,2617.0,0.46]
[1727190860297,9.77901388,2617.1,2617.0,0.46]
[1727190860499,9.77901388,2617.1,2617.0,0.30135057]
[1727190863908,9.22901388,2617.1,2617.0,0.30135057]
[1727190866609,9.77901388,2617.1,2617.0,0.30135057]
[1727190867065,10.57582332,2617.1,2617.0,0.30135057]
[1727190867268,12.86982332,2617.1,2617.0,0.30135057]
[1727190867469,10.57582332,2617.1,2617.0,0.30135057]
[1727190867690,9.77901388,2617.1,2617.0,0.30135057]
[1727190867894,15.66957397,2617.1,2616.6,0.0381198]
[1727190868112,8.36214593,2616.7,2616.6,0.0381198]
[1727190883581,7.81214593,2616.7,2616.6,0.0381198]
[1727190884827,7.01754593,2616.7,2616.6,0.0381198]
[1727190885423,7.11310495,2616.7,2616.6,0.0381198]
[1727190885629,8.20656245,2616.7,2616.6,0.0381198]
[1727190885843,8.11100343,2616.7,2616.6,0.0381198]
[1727190888170,8.66100343,2616.7,2616.6,0.0381198]
[1727190888370,9.42860343,2616.7,2616.6,0.0381198]
[1727190890638,10.2253921,2616.7,2616.6,0.0381198]
[1727190890833,9.42860343,2616.7,2616.6,0.0381198]
[1727190891231,10.2253921,2616.7,2616.6,0.0381198]
[1727190892481,9.42860343,2616.7,2616.6,0.0381198]
[1727190892782,10.22622785,2616.7,2616.6,0.0381198]
[1727190892984,8.90862785,2616.7,2616.6,0.0381198]
[1727190893139,8.11100343,2616.7,2616.6,0.0381198]
[1727190893340,8.90862785,2616.7,2616.6,0.0381198]
[1727190894289,8.11100343,2616.7,2616.6,0.0381198]
[1727190894441,3.8216,2616.7,2616.6,0.0381198]
[1727190896445,4.61922442,2616.7,2616.6,0.0381198]
[1727190897545,5.01681416,2616.7,2616.6,0.0381198]
[1727190897739,5.78441416,2616.7,2616.6,0.0381198]
[1727190897941,9.29483953,2616.7,2616.6,0.0381198]
[1727190898263,9.69269301,2616.7,2616.6,0.0381198]
[1727190898444,7.70122065,2616.7,2616.6,0.0381198]
[1727190899259,9.70297295,2616.7,2616.6,0.0381198]
[1727190899558,6.93362065,2616.7,2616.6,0.0381198]
[1727190899978,6.97830897,2616.7,2616.6,0.0381198]
[1727190901599,4.97533492,2616.7,2616.6,0.0381198]
[1727190901750,8.91842378,2616.7,2616.6,0.0381198]
[1727190901946,8.82286425,2616.7,2616.6,0.0381198]
[1727190902379,6.4207717,2616.7,2616.6,0.0381198]
[1727190902582,8.36442819,2616.7,2616.6,0.0381198]
[1727190905286,8.36442819,2616.7,2616.6,0.0381198]
[1727190905494,10.77149589,2616.7,2616.6,0.0381198]
[1727190905904,9.73482819,2616.7,2616.6,0.0381198]
[1727190906498,8.91442819,2616.7,2616.6,0.0381198]
[1727190909528,6.4207717,2616.7,2616.6,0.0381198]
[1727190909826,8.82846089,2616.7,2616.6,0.8164198]
[1727190909961,6.4207717,2616.7,2616.6,0.8164198]
[1727190910158,4.97533492,2616.7,2616.6,0.8164198]
[1727190910382,1.15373492,2616.7,2616.6,0.8164198]
[1727190910644,3.1601311,2616.7,2616.6,0.8164198]
[1727190911086,1.20376363,2616.7,2616.6,5.10200878]
[1727190911289,0.80242454,2616.8,2616.7,6.8216]
[1727190911463,0.80242454,2616.9,2616.8,6.82146]
[1727190911664,0.80242454,2617.0,2616.9,3.82131]
[1727190911969,0.80242454,2617.0,2616.9,0.7783]
[1727190911970,1.20315413,2617.0,2616.9,0.7783]
[1727190912201,2.76146365,2617.0,2616.9,0.7783]
[1727190912509,2.76146365,2617.0,2616.9,4.59952]
[1727190912510,1.15637896,2617.0,2616.9,4.59952]
[1727190912662,1.20296208,2617.0,2616.9,4.59952]
[1727190913299,2.35920469,2617.1,2616.9,4.59952]
[1727190913495,2.35920469,2617.1,2616.9,0.7783]
[1727190913496,0.80195643,2617.0,2616.9,0.7783]
[1727190913703,1.20296208,2617.0,2616.9,0.7783]
[1727190914500,1.20296208,2617.0,2616.9,4.59961]
[1727190914729,0.80141271,2617.0,2616.9,0.7783]
[1727190915036,0.80141271,2617.0,2616.9,4.59961]
[1727190915195,0.80141271,2617.1,2617.0,4.59946]
[1727190915394,0.80141271,2617.2,2617.0,4.59946]
[1727190915730,0.80141271,2617.3,2617.2,0.7783]
[1727190915931,4.39890801,2617.3,2616.9,0.8309]
[1727190916143,0.80101727,2617.1,2616.9,4.65218]
[1727190916296,0.80101727,2617.2,2617.1,3.82102]
[1727190916495,0.80101727,2617.3,2617.1,4.65192]
[1727190916893,0.80101727,2617.2,2617.1,0.8309]
[1727190917408,0.80101727,2617.3,2617.1,0.8309]
[1727190917794,0.09552665,2617.2,2617.1,0.8309]
[1727190917994,8.40973518,2617.2,2616.8,0.8309]
[1727190918200,7.8182332,2617.0,2616.8,0.8309]
[1727190918510,1.2015259,2616.9,2616.6,0.0381198]
[1727190918739,0.80053494,2616.8,2616.6,0.0381198]
[1727190918895,4.62213494,2616.8,2616.6,0.0381198]
[1727190919199,0.80053494,2616.9,2616.6,3.8598498]
[1727190919801,0.80053494,2616.8,2616.6,3.8598498]
[1727190920121,0.80053494,2616.9,2616.6,0.0381198]
[1727190920317,0.80053494,2616.9,2616.7,0.8309]
[1727190920635,0.80053494,2617.0,2616.7,4.65249]
[1727190921153,0.80053494,2616.9,2616.7,0.8309]
[1727190921900,0.80053494,2617.0,2616.7,0.8309]
[1727190922134,0.80053494,2616.9,2616.7,0.8309]
[1727190925539,4.71738728,2616.9,2616.7,0.8309]
[1727190925783,4.71738728,2616.9,2616.6,0.0381198]
[1727190925784,3.8216,2616.7,2616.6,0.0381198]
[1727190926293,0.80044418,2616.7,2616.6,0.0381198]
[1727190926643,4.62204418,2616.7,2616.6,0.0381198]
[1727190926885,5.11868088,2616.7,2616.6,0.0381198]
[1727190927191,6.52649766,2616.7,2616.6,0.0381198]
[1727190928181,7.34459766,2616.7,2616.6,0.0381198]
[1727190928353,8.99688369,2616.7,2616.6,0.0381198]
[1727190928561,8.90132199,2616.7,2616.6,0.0381198]
[1727190929963,7.29730115,2616.7,2616.6,0.0381198]
[1727190930162,6.5258431,2616.7,2616.6,0.0381198]
[1727190930467,6.47917635,2616.7,2616.6,0.0381198]
[1727190930680,8.08038006,2616.7,2616.6,0.0381198]
[1727190932583,6.52582818,2616.7,2616.6,0.0381198]
[1727190933315,6.47924606,2616.7,2616.6,0.0381198]
[1727190933595,8.08044977,2616.7,2616.6,0.0381198]
[1727190935806,6.47924606,2616.7,2616.6,0.0381198]
[1727190936168,8.08044977,2616.7,2616.6,0.0381198]
[1727190936603,6.47924606,2616.7,2616.6,0.0381198]
[1727190936909,8.08044977,2616.7,2616.6,0.0381198]
[1727190938438,5.02284924,2616.7,2616.6,0.0381198]
[1727190938644,0.80080799,2616.9,2616.7,6.8216]
[1727190938936,1.60120371,2617.2,2616.7,6.8216]
[1727190938937,0.80080799,2617.2,2616.8,4.62573]
[1727190939809,0.80080799,2617.2,2616.9,3.82123]
[1727190940106,1.60120371,2617.4,2617.1,3.8043]
[1727190940107,0.80080799,2617.4,2617.1,3.8043]
[1727190940306,0.80080799,2617.5,2617.4,3.82058]
[1727190940490,1.20124924,2617.6,2617.4,4.62488]
[1727190940491,0.80080799,2617.6,2617.4,4.62488]
[1727190940825,0.80080799,2617.6,2617.4,0.8043]
[1727190942537,0.80080799,2617.7,2617.4,4.62486]
[1727190943323,0.80080799,2617.7,2617.6,3.82029]
[1727190943511,0.80080799,2617.9,2617.6,3.82029]
[1727190943695,0.80080799,2617.9,2617.4,4.62487]
[1727190943891,0.80080799,2617.9,2617.4,0.8043]
[1727190943892,4.62080799,2617.8,2617.4,0.8043]
[1727190944339,0.80080799,2617.8,2617.4,0.8043]
[1727190944646,0.80080799,2617.8,2617.5,3.0]
[1727190944935,0.80080799,2617.8,2617.5,3.82041]
[1727190945138,0.80080799,2618.0,2617.5,3.82041]
[1727190945430,0.80080799,2618.0,2617.6,3.8202]
[1727190945929,0.80080799,2618.0,2617.7,3.82005]
[1727190946129,0.80080799,2618.1,2617.8,3.81992]
[1727190946640,5.02056924,2618.3,2617.8,3.81992]
[1727190946641,0.80080799,2618.2,2617.8,3.81992]
[1727190946801,0.80080799,2618.2,2617.9,3.81985]
[1727190947002,4.62014799,2618.3,2618.0,0.7736]
[1727190947200,1.46571771,2618.2,2618.0,0.7736]
[1727190947725,1.46571771,2618.2,2617.7,3.7736]
[1727190947726,3.81971,2618.0,2617.7,3.7736]
[1727190947939,3.81971,2618.0,2617.5,0.7736]
[1727190948098,0.80080799,2618.0,2617.5,8.41437]
[1727190948295,1.76906728,2618.0,2617.5,8.41437]
[1727190948594,1.76906728,2618.0,2617.5,8.41431]
[1727190949022,1.76906728,2618.0,2617.5,4.59395]
[1727190949023,0.96825929,2618.0,2617.5,4.59395]
[1727190949232,4.62045799,2618.1,2617.5,8.41427]
[1727190949434,8.44012799,2618.1,2617.5,4.59392]
[1727190949937,3.81972,2618.0,2617.5,4.59392]
[1727190950246,4.62045799,2618.1,2617.5,4.59392]
[1727190950620,8.44014799,2618.1,2617.5,8.41427]
[1727190950945,4.62045799,2618.1,2617.6,3.82025]
[1727190951235,8.44011799,2618.1,2617.6,3.82025]
[1727190951436,3.81971,2618.0,2617.5,8.41427]
[1727190951742,3.81986,2617.9,2617.5,4.59392]
[1727190951895,3.81977,2618.0,2617.5,4.59392]
[1727190953504,3.81987,2617.9,2617.5,4.59392]
[1727190953917,3.81972,2618.0,2617.5,4.59392]
[1727190954403,6.24805371,2618.4,2617.9,3.0]
[1727190954404,1.19788711,2618.3,2617.9,3.0]
[1727190954600,5.41898371,2619.4,2618.9,3.81837]
[1727190954845,0.46986537,2619.4,2618.9,3.81837]
[1727190955045,0.46986537,2619.4,2619.0,4.59184]
[1727190955406,0.46986537,2619.4,2619.0,0.7736]
[1727190955805,4.28755537,2619.4,2619.0,0.7736]
[1727190956368,0.46986537,2619.4,2619.0,0.7736]
[1727190956571,0.46986537,2619.4,2619.0,4.59182]
[1727190956760,0.50698054,2619.3,2618.8,3.81846]
[1727190957271,0.50698054,2619.3,2618.9,3.8183]
[1727190959137,0.50698054,2619.3,2618.8,3.81844]
[1727190959138,7.52073647,2619.3,2618.8,3.81844]
[1727190959538,3.70292647,2619.3,2618.8,3.81844]
[1727190959749,3.81869,2618.7,2618.2,0.7736]
[1727190960063,3.19594593,2619.0,2617.9,0.7736]
[1727190960064,3.81928,2618.3,2617.9,0.7736]
[1727190960379,3.81928,2618.3,2617.1,7.37]
[1727190960380,7.01536593,2618.2,2617.7,3.82005]
[1727190960580,4.60125,2618.6,2617.7,0.382005]
[1727190960581,3.81907,2618.5,2617.7,0.382005]
[1727190960880,3.81907,2618.5,2617.5,0.7736]
[1727190960881,3.81907,2618.5,2618.0,8.4128]
[1727190961088,3.81907,2618.5,2618.0,4.59318]
[1727190961240,3.97834593,2618.6,2618.0,0.7736]
[1727190961579,3.97834593,2618.6,2617.8,3.8199]
[1727190961580,3.81943,2618.2,2617.8,3.8199]
[1727190961763,0.39783459,2618.5,2618.0,3.8197]
[1727190962098,0.39783459,2618.5,2618.1,3.81955]
[1727190962739,3.81942,2618.2,2617.8,3.0]
[1727190963067,3.19594593,2618.0,2617.7,4.57633]
[1727190963649,3.19594593,2618.0,2617.5,3.82034]
[1727190963869,3.19594593,2618.0,2617.5,7.6407]
[1727190964179,10.83493593,2618.2,2617.7,3.82013]
[1727190964396,7.01543593,2618.2,2617.5,3.82034]
[1727190964545,3.81956,2618.1,2617.5,3.8203]
[1727190965472,3.81983,2618.0,2617.5,3.8203]
[1727190966081,3.81986,2617.9,2617.5,3.0]
[1727190966391,3.19594593,2617.8,2617.5,3.0]
[1727190966883,8.27897519,2618.0,2617.5,6.82043]
[1727190967048,7.01569593,2618.0,2617.5,3.0]
[1727190967254,3.81995,2617.9,2617.5,3.82043]
[1727190967448,3.81995,2617.9,2617.4,3.0]
[1727190967760,3.82037,2617.6,2617.2,3.0]
[1727190967961,4.584562,2617.5,2617.0,3.82116]
[1727190968285,4.584562,2617.5,2617.1,3.82101]
[1727190968286,3.82051,2617.5,2617.1,3.82101]
[1727190968494,3.82059,2617.4,2616.9,7.64248]
[1727190968675,3.82074,2617.3,2616.8,4.57775]
[1727190968873,7.64108,2617.5,2616.9,3.82128]
[1727190969182,3.82059,2617.4,2617.0,3.0]
[1727190970048,3.82059,2617.4,2616.8,1.60004098]
[1727190970049,3.19594593,2617.2,2616.7,3.82149]
[1727190970254,3.19594593,2617.2,2616.6,0.0381198]
[1727190970255,7.71850152,2617.2,2616.6,0.0381198]
[1727190970482,7.01682593,2617.2,2616.7,3.82153]
[1727190971187,3.82111,2617.1,2616.6,3.8598598]
[1727190971492,3.82111,2617.1,2616.7,3.0]
[1727190971699,7.01682593,2617.2,2616.7,3.8216]
[1727190971991,3.19594593,2617.2,2616.8,3.82143]
[1727190972358,7.01683593,2617.2,2616.7,3.8216]
[1727190973294,7.01683593,2617.2,2616.6,3.0381198]
[1727190973295,1.47443926,2618.7,2618.4,0.55]
[1727190973527,0.0381198,2620.6,2619.4,0.55]
[1727190973661,0.0381198,2620.6,2619.7,10.15537593]
[1727190974369,0.0381198,2620.6,2620.4,3.0]
[1727190974621,0.0381198,2620.6,2620.4,6.81611]
[1727190974764,0.0381198,2620.6,2620.4,6.81609]
[1727190975164,0.0381198,2620.6,2620.4,10.6322]
[1727190975360,0.0381198,2620.6,2620.4,6.81609]
[1727190976076,0.0381198,2620.6,2620.1,3.81653]
[1727190976276,0.0381198,2620.6,2620.2,6.81639]
[1727190976497,0.0381198,2620.6,2619.7,0.1422]
[1727190976498,0.0381198,2620.6,2620.3,3.81621]
[1727190976784,0.0381198,2620.6,2620.4,3.81616]
[1727190977163,0.8272,2620.5,2619.7,3.1422]
[1727190977375,0.8272,2620.5,2619.2,3.81794]
[1727190977376,3.9333295,2620.2,2619.2,3.81794]
[1727190977588,4.20999295,2620.1,2619.3,3.81777]
[1727190978464,4.20999295,2620.1,2619.4,3.81763]
[1727190979474,0.39333295,2620.1,2619.4,3.81763]
[1727190980882,4.21002295,2620.1,2619.4,3.81763]
[1727190981214,0.81433525,2620.0,2619.4,3.81763]
[1727190981435,0.81433525,2620.0,2619.5,3.81751]
[1727190981576,3.81641,2620.3,2619.4,3.81758]
[1727190981776,4.64334,2620.5,2619.7,3.81711]
[1727190982782,4.64331,2620.5,2619.9,3.81685]
[1727190983809,4.64331,2620.5,2619.7,3.81711]
[1727190983810,3.81622,2620.4,2619.7,3.81711]
[1727190984014,0.845953,2620.3,2619.8,3.81704]
[1727190984221,0.845953,2620.3,2619.8,3.81706]
[1727190984575,4.662333,2620.3,2619.7,3.81711]
[1727190984777,0.845953,2620.3,2619.7,3.81711]
[1727190985173,0.845953,2620.3,2619.8,3.81698]
[1727190985373,0.845953,2620.3,2619.9,3.81686]
[1727190985817,0.845953,2620.3,2619.7,3.81711]
[1727190985985,0.4662163,2620.2,2619.8,3.81708]
[1727190986191,0.4662163,2620.2,2619.8,3.81706]
[1727190986577,0.4662163,2620.2,2619.6,3.81729]
[1727190986978,4.2827163,2620.2,2619.7,3.81722]
[1727190988102,0.4662163,2620.2,2619.8,3.81707]
[1727190990186,0.42825963,2620.1,2619.6,3.81729]
[1727190990408,4.24491963,2620.1,2619.6,3.81729]
[1727190991430,4.24491963,2620.1,2619.4,3.81759]
[1727190991431,0.7851,2620.0,2619.4,3.81766]
[1727190991571,0.7851,2620.0,2619.5,3.81749]
[1727190991572,4.60194,2620.0,2619.5,3.81749]
[1727190991775,0.89634191,2619.9,2619.5,3.81748]
[1727190992207,0.89634191,2619.9,2619.4,3.81766]
[1727190993184,0.42825963,2620.1,2619.6,3.81724]
[1727190993414,3.8166,2620.2,2619.6,3.81724]
[1727190993625,3.81665,2620.1,2619.6,3.81724]
[1727190994015,3.8166,2620.2,2619.6,3.81724]
[1727190994328,3.81681,2620.0,2619.4,3.81754]
[1727190994511,0.7851,2620.4,2619.3,3.0]
[1727190994512,3.81656,2620.2,2619.3,3.0]
[1727190994712,3.81656,2620.2,2619.5,3.81738]
[1727190994713,3.81665,2620.1,2619.5,3.81738]
[1727190995285,3.81665,2620.1,2619.4,3.81756]
[1727190995606,3.81665,2620.1,2619.5,3.81742]
[1727190997394,3.81665,2620.1,2619.3,3.81768]
[1727190997590,3.81665,2620.1,2619.2,6.81785]
[1727190997591,3.81694,2619.9,2619.4,3.81752]
[1727190997795,3.81694,2619.9,2619.4,7.6351]
[1727190998535,3.81694,2619.9,2619.4,3.81752]
[1727190998700,3.81694,2619.9,2619.5,3.81749]
[1727190999204,3.81694,2619.9,2619.4,3.81752]
[1727190999403,3.81694,2619.9,2619.2,3.0]
[1727190999404,4.6184755,2619.9,2619.2,6.81786]
[1727190999601,4.6184755,2619.9,2619.4,6.81759]
[1727190999602,0.7851,2619.8,2619.4,6.81759]
[1727191000499,0.7851,2619.8,2619.5,3.81743]
[1727191000993,0.7851,2619.8,2619.5,7.63487]
[1727191001200,4.198465,2620.0,2619.5,3.81743]
[1727191001932,3.81694,2619.9,2619.5,3.81743]
[1727191002303,4.198485,2620.0,2619.5,3.81743]
[1727191004417,0.8800365,2619.9,2619.5,3.81743]
[1727191005043,4.6969765,2619.9,2619.5,3.81743]
[1727191006140,4.6969765,2619.9,2619.5,18.81743]
[1727191006645,4.6969765,2619.9,2619.5,15.0]
[1727191007730,4.6969765,2619.9,2619.5,18.81751]
[1727191008228,0.8800365,2619.9,2619.5,18.81751]
[1727191008652,0.8800365,2619.9,2619.6,3.81736]
[1727191009247,0.8800365,2619.9,2619.5,18.81649682]
[1727191009620,0.8800365,2619.9,2619.5,18.81639682]
[1727191010026,0.8800365,2619.9,2619.6,3.81725]
[1727191010237,4.198465,2620.0,2619.6,3.81725]
[1727191010618,0.7851,2620.1,2619.8,3.81705]
[1727191010819,3.81648,2620.3,2619.9,3.81692]
[1727191011046,4.62832,2620.4,2619.9,7.63378]
[1727191011210,4.62832,2620.4,2620.0,3.81676]
[1727191011410,3.81638,2620.3,2619.9,3.81686]
[1727191013630,3.8165,2620.2,2619.7,3.81713]
[1727191013860,0.8121,2620.4,2619.7,3.81713]
[1727191013861,4.3906985,2620.3,2619.8,3.81706]
[1727191014857,4.3906985,2620.3,2619.9,3.81693]
[1727191016159,0.5742585,2620.3,2619.9,3.81693]
[1727191016365,0.5742585,2620.3,2619.9,3.81684]
[1727191016940,0.5742585,2620.3,2619.9,7.63367]
[1727191017126,0.0381198,2620.6,2619.8,6.81702]
[1727191017432,0.0381198,2620.6,2620.3,3.81623]
[1727191018633,0.0381198,2620.6,2620.2,3.81647]
[1727191019246,0.0381198,2620.6,2620.3,7.6326]
[1727191019448,0.0381198,2620.6,2620.3,3.81626]
[1727191019833,0.0381198,2620.6,2620.1,4.56911]
[1727191020057,0.0381198,2620.6,2620.5,3.81606]
[1727191021950,0.0381198,2620.6,2620.4,3.81619]
[1727191022267,0.0381198,2620.6,2620.4,3.81612]
[1727191022573,0.0381198,2620.6,2620.5,3.81606]
[1727191023461,0.0381198,2620.6,2620.1,0.7525]
[1727191023462,0.8226198,2620.6,2620.1,7.6331]
[1727191023662,0.8226198,2620.6,2620.2,3.81641]